Cogmind - Beta 16.1 @@@ ROGUE MODE // 2026.02.11 @ 07:02:16 Player: Storm Mk9 Result: Destroyed by X5-JLO(R) with Subdweller Laser Performance ------------- Evolutions (0) 0 Regions Visited (2) 400 Robots Destroyed (19) 95 Value Destroyed (576) 576 Prototype IDs (0) 0 Alien Tech Used (0) 0 Bonus (0) 0 TOTAL SCORE: 1071 Bonus ------- None Cogmind --------- Core Integrity 0/250 Matter 280/300 Energy 170/170 System Corruption 0% Temperature Cool (6) Movement Treading (160) Location -10/Subcaves Parts ------- > --- POWER (1) -------- Makeshift Power Source > --- PROPULSION (2) --- Light Treads Subdweller Monowheel > --- UTILITY (2) ------ Small Storage Unit Makeshift Thermal Plating > --- WEAPON (2) ------- Medium Laser Barrage Gun > --- INVENTORY (8) ---- Ion Engine EM Pulse Gun Medium Laser Subdweller Machine Gun Flamer Shrapnel Trap Peak State ------------ > --- POWER ------------ Makeshift Power Source > --- PROPULSION ------- Light Treads Subdweller Monowheel > --- UTILITY ---------- Small Storage Unit Makeshift Thermal Plating > --- WEAPON ----------- Subdweller Machine Gun Subdweller Machine Gun > --- INVENTORY -------- Ion Engine EM Pulse Gun Medium Laser Medium Laser Barrage Gun Flamer Shrapnel Trap [Rating: 17] Favorites ----------- Power Makeshift Power Source Engine Makeshift Power Source Propulsion Light Treads Treads Light Treads Wheel Subdweller Monowheel Utility Small Storage Unit Device Seismic Detector Storage Small Storage Unit Protection Makeshift Thermal Plating Weapon Medium Laser Energy Gun Medium Laser Ballistic Gun Battle Rifle Build | -11 -10 -10 ------- Run | Yrd Mat Sub Slots Evolved . | . . . Power . | . . . Propulsion . | . . . Utility . | . . . Weapon . | . . . Parts Attached 14 | 7 . 7 Power 2 | 1 . 1 Engine 2 | 1 . 1 Core . | . . . Reactor . | . . . Propulsion 3 | 2 . 1 Treads 2 | 2 . . Leg . | . . . Wheel 1 | . . 1 Hover . | . . . Flight . | . . . Utility 3 | 2 . 1 Device 1 | 1 . . Storage 1 | 1 . . Processor . | . . . Hackware . | . . . Protection 1 | . . 1 Artifact . | . . . Weapon 6 | 2 . 4 Energy Gun 2 | 2 . . Energy Cannon . | . . . Ballistic Gun 4 | . . 4 Ballistic Cannon . | . . . Launcher . | . . . Special Weapon . | . . . Impact Weapon . | . . . Slashing Weapon . | . . . Piercing Weapon . | . . . Special Melee Weapon . | . . . Unidentified Prototypes . | . . . Parts Lost 6 | . . 6 Power 1 | . . 1 Propulsion 1 | . . 1 Utility 1 | . . 1 Weapon 3 | . . 3 Highest Loss Streak 3 | . . 3 To Critical Strikes . | . . . Average Backups 4 | 2 2 4 Power 1 | . 1 1 Propulsion . | . . . Utility . | . . . Weapon 3 | 1 1 3 Tool/Special . | . . . Unused Backups 4 | . . 4 Power 1 | . . 1 Propulsion . | . . . Utility . | . . . Weapon 3 | . . 3 Tool/Special . | . . . Average Slot Usage (%) 99 | . 100 99 Engine 14 | . 14 14 Treads 23 | . 28 22 Wheel 4 | . . 5 Device 9 | . 14 9 Storage 14 | . 14 14 Protection 4 | . . 4 Energy Gun 11 | . 28 9 Ballistic Gun 16 | . . 18 Peak Build Rating 17 | 7 7 17 Average Rating 11 | 4 7 12 On Entrance 4 | . 7 7 Avg Prop Armor Cover (%) 3 | . . 3 Naked Turns . | . . . Heaviest Build 18 | 15 15 18 Greatest Support 40 | 40 40 40 Greatest Overweight (x) 2 | 2 . . Average Overweight (x) . | . . . Largest Inventory Capacity 8 | 8 8 8 Average Capacity 7 | 7 8 8 Most Carried 8 | 6 2 8 Average Carried 4 | 2 2 5 Final Capacity 8 | 8 8 8 Final Carried 6 | 2 2 6 Class Distribution -------------------- 95% | Mutant 4% | Scavenger-Mutant Dominant Class ---------------- Mutant | -10/Materials Mutant | -10/Subcaves Resources | -11 -10 -10 ----------- Run | Yrd Mat Sub Matter Collected 483 | 235 . 248 Remotely . | . . . Salvage Created 645 | 16 . 629 Parts 51 | 5 . 46 Haulers Intercepted . | . . . Recyclers Shooed . | . . . Parts Field Recycled . | . . . Retrieved Matter . | . . . Parts Self-Destructed 15 | . . 15 Prevented . | . . . Parts Restored . | . . . Kills | -11 -10 -10 ------- Run | Yrd Mat Sub Combat Hostiles Destroyed 18 | . . 18 Guns 18 | . . 18 Classes Destroyed 5 | 1 . 4 Tunneler 1 | 1 . . Swarmer 5 | . . 5 Grunt 1 | . . 1 Sentry 1 | . . 1 Subdweller 11 | . . 11 Best Kill Streak 4 | 1 . 4 Combat Bots Only 4 | . . 4 Max Kills in Single Turn 2 | 1 . 2 Gunslinging 1 | . . 1 Exploded . | . . . Melee . | . . . Uniques/NPCs Destroyed . | . . . Combat | -11 -10 -10 -------- Run | Yrd Mat Sub Hostile Shots Fired 92 | . . 92 Missed 28 | . . 28 Hits 64 | . . 64 Projectile 64 | . . 64 Damage Taken 1054 | . . 1054 Core 253 | . . 253 Absorbed by Shields . | . . . Ignored by Resistances 32 | . . 32 Core Remaining (%) 100 | 100 . . Volleys Fired 52 | 1 . 51 Largest 2 | 2 . 2 Hottest 90 | 90 . 90 Shots Fired 103 | 2 . 101 Gun 103 | 2 . 101 Cannon . | . . . Launcher . | . . . Special . | . . . Kinetic 67 | . . 67 Thermal 27 | 1 . 26 Explosive . | . . . Electromagnetic 9 | 1 . 8 Robot Hit Streak 16 | 1 . 16 Robot Miss Streak 3 | . . 3 Penetration Max . | . . . Secondary Targets 3 | . . 3 Max Gunslinging Chain 1 | . . 1 Shots Hit Robots 71 | 1 . 70 Core Hits 30 | 1 . 29 Critical Kills 1 | . . 1 Critical Parts Destroyed . | . . . Critical Strikes 3 | . . 3 Burn 2 | . . 2 Destroy 1 | . . 1 Melee Attacks . | . . . Impact . | . . . Slashing . | . . . Piercing . | . . . Sneak Attacks . | . . . Combat Hostiles . | . . . Follow-up Attacks . | . . . Damage Inflicted 1178 | 15 . 1163 Guns 1178 | 15 . 1163 Cannons . | . . . Explosions . | . . . Melee . | . . . Ramming . | . . . Kinetic 898 | . . 898 Thermal 189 | . . 189 Explosive . | . . . Electromagnetic 91 | 15 . 76 Impact . | . . . Slashing . | . . . Piercing . | . . . Highest Corruption . | . . . Average Corruption . | . . . Corruption Purged . | . . . Corruption Blocked . | . . . Overload Shots . | . . . Overflow Damage . | . . . Projectiles . | . . . Explosions . | . . . Melee . | . . . Knockbacks . | . . . Impact . | . . . Kinetic . | . . . Secondary . | . . . Self-Inflicted Damage . | . . . Shots . | . . . Rammed . | . . . Targets Rammed . | . . . Kicked . | . . . Crushed . | . . . Highest Temperature 30 | 30 . 18 Average Temperature 9 | 18 . 7 Received Heat Transfer 192 | . . 192 Siege Activations . | . . . Martial Activations . | . . . Shielding Activations . | . . . Robots Disrupted . | . . . Combat Hostiles . | . . . Robots Corrupted . | . . . Combat Hostiles . | . . . Parts Fried . | . . . Impact Corruptions . | . . . Robots Melted . | . . . Combat Hostiles . | . . . Parts Melted 1 | . . 1 Heat Transferred 703 | . . 703 Parts Sabotaged . | . . . Parts Stolen . | . . . Parts Stripped . | . . . Power Chain Reactions . | . . . Alert | -11 -10 -10 ------- Run | Yrd Mat Sub Maximum Alert Level . | . . . Low Security (%) 100 | 100 100 . Level 1 . | . . . Level 2 . | . . . Level 3 . | . . . Level 4 . | . . . Level 5 . | . . . High Security . | . . . Max Security . | . . . Peak Influence . | . . . Initial . | . . . Average . | . . . Influence Increases 165 | 5 . 160 Destroy 0b10 Robot/C 140 | . . 140 Destroy 0b10 Robot/NC 5 | 5 . . Destroy Leader 20 | . . 20 Influence Decreases 139 | 5 . 134 Time Decay 129 | 5 . 124 Lost Part 10 | . . 10 Squads Dispatched . | . . . Investigation . | . . . Extermination . | . . . Reinforcement . | . . . Assault . | . . . Garrison . | . . . Intercept . | . . . Searches Triggered . | . . . Construction Impeded . | . . . Haulers Reinforced . | . . . Active Scanning Responses . | . . . Cargo Convoy Interrupts . | . . . Stealth | -11 -10 -10 --------- Run | Yrd Mat Sub Distress Signals . | . . . Communications Jammed . | . . . Distress Signals . | . . . Times Spotted 21 | . . 21 Peak Tracking Total 4 | . . 4 Tactical Retreats . | . . . Traps | -11 -10 -10 ------- Run | Yrd Mat Sub Traps Triggered . | . . . Indirectly . | . . . Trap Hack Attempts . | . . . Triggered . | . . . Disarmed . | . . . Reprogrammed . | . . . Reused . | . . . Traps Extracted . | . . . Installed . | . . . Triggered . | . . . Most Traps Carried 1 | . . 1 Machines | -11 -10 -10 ---------- Run | Yrd Mat Sub Machines Disabled . | . . . Max in Single Turn . | . . . Machines Repaired . | . . . Machines Dismantled . | . . . Machines Sabotaged . | . . . Overloaded Fab Kills . | . . . Hacking | -11 -10 -10 --------- Run | Yrd Mat Sub Machines Accessed . | . . . Terminals . | . . . Fabricators . | . . . Repair Stations . | . . . Recycling Units . | . . . Scanalyzers . | . . . Garrison Access . | . . . Total Hacks . | . . . Successful . | . . . Failed . | . . . Catastrophic . | . . . Database Lockouts . | . . . Manual . | . . . Terminals . | . . . Fabricators . | . . . Repair Stations . | . . . Recycling Units . | . . . Scanalyzers . | . . . Garrison Access . | . . . Terminal Hacks . | . . . Fabricator Hacks . | . . . Repair Station Hacks . | . . . Recycling Unit Hacks . | . . . Scanalyzer . | . . . Garrison Access Hacks . | . . . Unauthorized Hacks . | . . . Terminals . | . . . Fabricators . | . . . Repair Stations . | . . . Recycling Units . | . . . Scanalyzers . | . . . Garrison Access . | . . . Data Cores Recovered . | . . . Used . | . . . Hacking Detections . | . . . Full Trace Events . | . . . Feedback Events . | . . . Feedback Blocked . | . . . Robot Schematics Acquired . | . . . Robots Built . | . . . Authchips . | . . . Time . | . . . Total Robot Build Rating . | . . . Part Schematics Acquired . | . . . Parts Built . | . . . Authchips . | . . . Time . | . . . Total Part Build Rating . | . . . Part Studies Acquired . | . . . Parts Repaired . | . . . Time . | . . . Parts Recycled . | . . . Recycled Matter . | . . . Retrieved Matter . | . . . Retrieved Components . | . . . Parts Scanalyzed . | . . . Part Schematics Acquired . | . . . Parts Damaged . | . . . Bothacking | -11 -10 -10 ------------ Run | Yrd Mat Sub Used RIF Installer . | . . . Robots Hacked . | . . . Non-combat . | . . . Combat . | . . . Robot Hacks Applied . | . . . Relay Couplers Released . | . . . Fabnet Peak Effective % . | . . . Robots Rewired . | . . . Allies Hacked . | . . . Hacks Repelled . | . . . Allies | -11 -10 -10 -------- Run | Yrd Mat Sub Total Allies . | . . . Largest Group . | . . . Highest-Rated Group . | . . . Highest-Rated Ally . | . . . Total Orders . | . . . Ally Attacks . | . . . Total Damage . | . . . Kills . | . . . Allies Corrupted . | . . . Allies Melted . | . . . Intel | -11 -10 -10 ------- Run | Yrd Mat Sub Active Infowar (turns) 1010 | 8 145 857 Seismic 1010 | 8 145 857 Robot Analysis Total . | . . . Derelict Logs Recovered 2 | . . 2 Drone Launches . | . . . Drone Recoveries . | . . . Exploration | -11 -10 -10 ------------- Run | Yrd Mat Sub Turns Passed 1548 | 74 145 1329 Spaces Moved 749 | 47 17 685 Core 22 | 22 . . Treads 727 | 25 17 685 Legs . | . . . Wheels . | . . . Hover . | . . . Flight . | . . . Fastest Speed 50 | 50 160 160 Average Speed 157 | 121 160 160 Slowest Speed 160 | 160 160 160 Overloaded Moves . | . . . Propulsion Burnouts . | . . . Robots Hopped . | . . . Potential Cave-ins . | . . . Cave-ins Triggered . | . . . Exploration Rate (%) 21 | 4 4 56 Regions Visited 2 Branch Regions 1 Pre-discovered Areas . | . . . Known Exits Taken . | . . . Unknown Exits Taken 2 | 1 1 . Scrap Searched 4 | . . 4 Spaces Dug . | . . . Terrain Destroyed . | . . . Melee . | . . . Projectile . | . . . AOE . | . . . Terrain Rammed . | . . . Walls Destroyed . | . . . Machines Disabled . | . . . Actions | -11 -10 -10 --------- Run | Yrd Mat Sub Total 1015 | 61 135 819 Wait 184 | . 119 65 Move 747 | 46 16 685 Hop . | . . . Pick Up 17 | 7 . 10 Fast Attach 2 | 2 . . Attach 11 | 5 . 6 Detach . | . . . Swap 2 | . . 2 Drop . | . . . Fire 52 | 1 . 51 Melee . | . . . Ram . | . . . Kick . | . . . Crush . | . . . Escape Stasis . | . . . Rewire . | . . . Trap . | . . . Miscellaneous . | . . . Route ------- -11/Scrapyard -10/Materials -10/Subcaves (discovered 1 exit: [*Scr]) History --------- Turn | Location | Event 11 | -11/Scrapyard | Discovered new exit (range 16) 75 | -11/Scrapyard | Entered Materials 110 | -10/Materials | Discovered new exit (range 4) 220 | -10/Materials | Entered Subcaves 221 | -10/Subcaves | Approached by a straggling Scientist 230 | -10/Subcaves | Learned Materials emergency access door positions 236 | -10/Subcaves | Scientist uncovered a shortcut to Scraptown 316 | -10/Subcaves | Build established: Mutant 571 | -10/Subcaves | A swath of the cavern ceiling suddenly collapsed 857 | -10/Subcaves | Learned Materials security intel 1013 | -10/Subcaves | Core integrity fell below 50% 1082 | -10/Subcaves | Core integrity fell below 20% 1124 | -10/Subcaves | Lost 3 parts (1u2w) 1483 | -10/Subcaves | Shifting Twisted Machinery released Flamer 1503 | -10/Subcaves | Shifting Twisted Machinery released Riot Gun 1549 | -10/Subcaves | Destroyed by X5-JLO(R) with Subdweller Laser Last Messages --------------- 01083_ Sub. Machine Gun destroyed. 01095_ 61-M4Z(R) destroyed. 01099_ Acquired 50 matter. 01283_ Acquired Sub. Machine Gun. 01393_ S-10 Pest destroyed. 01393_ Switching to secondary target: G-34 Mercenary. 01393_ G-34 Mercenary destroyed. 01396_ Y-45 Defender destroyed. 01400_ Heat Sink fries itself beyond repair. 01400_ Beam Rifle fries itself beyond repair. 01401_ Acquired 12 matter. 01402_ Sml. Laser fries itself beyond repair. 01402_ Lgt. Treads fries itself beyond repair. 01406_ Heat Sink fries itself beyond repair. Flamer falls loose from the Twisted Machinery. Riot Gun falls loose from the Twisted Machinery. 01543_ FE-Y34(R) destroyed. 01547_ B1-XSA(R) affixes Scrap Shield Fragment to Scrap Shield. Map ----- +----------------------------------------------------+ | | | | | | | | | | | ?????????????????????????????????????????????????? | | ?????????????????????????????????????????????????? | | ?????????????????????????????????????????????????? | | ?????????????????????????????????????????????????? | | ?????????????????????????????????????????????????? | | ?????????????????????????????????????????????????? | | ?????????????????????????????????????????????????? | | ?????????????????????????????????????????????????? | | ?????????????????????????????????????????????????? | | ?????????????????????????????????????????????????? | | ?????????????????????????????????????????????????? | | ?????????????????????????????????????????????????? | | ?????????????????????????????????????????????????? | | ?????????????????????????????????????????????????? | | ????????????##########???????????????????????????? | | ######????### ######???????????#??????????? | | ##???# #??????? #??????????? | | #???# ""*##### #???????????? | | #???#### """""[=R& #???????????? | | ###????## """"" [R #???????????? | | ##????# ## """" @# ## #???????????? | | ## ##?###### """ " ## #?? "#?????????? | | %% #### #?# ## "## "##? ##????? " ?????????? | | % ##?## ##?# "#######???#???????????????????? | | #??# #?## "#####?????????????????????????? | | ##?# ### ""| ##????????????????????????? | | #### " #????????????????????????? | | #?# #????????????????????????? | | #?## #????????????????????????? | | ## #??# ### ##????????????????????????? | | ##?##??# ###?# ###?????????????????????????? | | #?????# #???# ##???????????????????????????? | | ?????# #???? ##????????????????????????????? | | ?????# ## ???? #?????????????????????????????? | | ?????###?## ???? #?????????????????????????????? | | ??????????## ??? #?????????????????????????????? | | ???????????? ???###?????????????????????????????? | | ???????????? ??????????????????????????????????? | | ???????????? ??????????????????????????????????? | | ???????????? ?????????????????????????????????? | | ???????????? ?????????????????????????????????? | | ???????????? ??????????????????????????????????? | | #??????????? ????????????????????????????????????? | | ##???????????????????????????????????????????????? | | ##??# ??????????????????????????????????????????? | +----------------------------------------------------+ Best States ------------- Heat Dissipation 25 Energy Generation 15 Energy Capacity 250 Matter Stores 300 Matter Capacity 300 Sight Range 16 Terrain Scan Density 10 Armor Coverage 100 Resistance: TH 10 Evasion (%) 50 Recoil Reduction 2 Item Schematics ----------------- None Robot Schematics ------------------ None Fabricated ------------ Nothing Repaired ---------- Nothing Studied --------- None Alien Tech Used ----------------- None Achievements -------------- Nice Directions, Buddy Challenges ------------ None Game ------ Seed SalvagingRecoilGriptreads Manual? 0 Play Time 00:09:09 Cumulative 91.9 hours Start 2026.02.11 @ 06:54:14 End 2026.02.11 @ 07:02:16 Sessions 1 Manual Loads 0 Difficulty Rogue Special Mode None Game No. 92 Rogue 73 Adventurer 0 Explorer 19 Win Type - Total 0 Types 0/0/0/0/0/0/0/0/0/0 Lore% 57 Gallery% 46 Achievement% 38 Wizard Run 0 Options --------- Layout 1 ASCII 0 Keyboard 0 Movement Mouse Keybinds 0 Fullscreen 2 Font 16/SmallcapsGlow Map View 50x40 Zoom Use 0% Tactical HUD 1 Map Filters NONE Filters NONE Steam SD RUN: ef4d9cd4-46a5-423f-a993-3d75dc5f0ef8